fUSD/lending_fUSD_20250616
["ID","MTS","AMOUNT","RATE_DAILY","PERIOD"]
[366087733,1750056669288,-1728.05,0.00016602,2]
[366087734,1750056669298,-154.398588,0.00016602,2]
[366087735,1750056669308,-1774.72,0.00016602,2]
[366087736,1750056669317,-154.398588,0.00016602,2]
[366087737,1750056669327,-154.398588,0.00016602,2]
[366087738,1750056669337,-154.398588,0.00016602,2]
[366087739,1750056669346,-2395.8,0.00016602,2]
[366087740,1750056669356,-490.0,0.00016602,2]
[366087741,1750056669365,-154.398598,0.00016602,2]
[366087742,1750056669375,-490.0,0.00016602,2]
[366087743,1750056669384,-4513.39,0.00016602,2]
[366087744,1750056669394,-2657.35,0.00016602,2]
[366087745,1750056669403,-460.67086211,0.00016602,2]
[366087746,1750056669413,-1232.12,0.00016602,2]
[366087747,1750056669423,-585.29,0.00016602,2]
[366087748,1750056669432,-715.55,0.00016602,2]
[366087749,1750056669442,-490.0,0.00016602,2]
[366087750,1750056669451,-989.67,0.00016602,2]
[366087751,1750056669461,-490.0,0.00016602,2]
[366087752,1750056669470,-490.0,0.00016602,2]
[366087753,1750056669480,-490.0,0.00016602,2]
[366087754,1750056669489,-490.0,0.00016602,2]
[366087755,1750056669498,-454.75891,0.00016602,2]
[366087756,1750056669507,-490.0,0.00016602,2]
[366087757,1750056669518,-454.75891,0.00016602,2]
[366087758,1750056669527,-454.75891,0.00016602,2]
[366087759,1750056669538,-454.75891,0.00016602,2]
[366087760,1750056669547,-9930.37,0.00016602,2]
[366087761,1750056669559,-2980.78,0.00016602,2]
[366087762,1750056669568,-831.02,0.00016602,2]
[366087763,1750056669578,-490.0,0.00016602,2]
[366087764,1750056669588,-454.75891,0.00016602,2]
[366087765,1750056669598,-490.0,0.00016602,2]
[366087766,1750056669607,-454.75891,0.00016602,2]
[366087767,1750056669617,-454.75891,0.00016602,2]
[366087768,1750056669626,-454.75892,0.00016602,2]
[366087769,1750056669636,-1263.04,0.00016602,2]
[366087770,1750056669647,-23440.85,0.00016602,2]
[366087771,1750056669656,-490.0,0.00016602,2]
[366087772,1750056669665,-492.02,0.00016602,2]
[366087773,1750056669675,-1823.65,0.00016602,2]
[366087774,1750056669685,-556.08,0.00016602,2]
[366087775,1750056669695,-490.0,0.00016602,2]
[366087776,1750056669704,-640.69,0.00016602,2]
[366087777,1750056669714,-5590.59,0.00016602,2]
[366087778,1750056669724,-336.72533,0.00016602,2]
[366087779,1750056669734,-336.72533,0.00016602,2]
[366087780,1750056669743,-336.72533,0.00016602,2]
[366087781,1750056669753,-3921.82,0.00016602,2]
[366087782,1750056669763,-1593.37,0.00016602,2]
[366087783,1750056669772,-151.0,0.00016602,2]
[366087784,1750056669781,-287.58419969,0.00016602,2]
[366087785,1750056669791,-336.72533,0.00016602,2]
[366087786,1750056669800,-278.128175,0.00016602,2]
[366087787,1750056669810,-336.72533,0.00016602,2]
[366087788,1750056669820,-490.0,0.00016602,2]
[366087789,1750056669830,-336.72533,0.00016602,2]
[366087790,1750056669841,-336.72533,0.00016602,2]
[366087791,1750056669852,-490.0,0.00016602,2]
[366087792,1750056669863,-490.0,0.00016602,2]
[366087793,1750056669872,-336.72533,0.00016602,2]
[366087794,1750056669881,-928.1,0.00016602,2]
[366087795,1750056669891,-336.72533,0.00016602,2]
[366087796,1750056669900,-336.72533,0.00016602,2]
[366087797,1750056669910,-336.72533,0.00016602,2]
[366087798,1750056669919,-10844.45,0.00016602,2]
[366087799,1750056669929,-336.72533,0.00016602,2]
[366087800,1750056669940,-336.72533,0.00016602,2]
[366087801,1750056669951,-594.19553418,0.00016602,2]
[366087802,1750056669960,-336.725321,0.00016602,2]
[366087803,1750056669970,-1852.95,0.00016602,2]
[366087804,1750056669979,-1498.58,0.00016602,2]
[366087805,1750056669989,-1323.92,0.00016602,2]
[366087806,1750056669998,-826.95,0.00016602,2]
[366087807,1750056670008,-1016.47,0.00016602,2]
[366087808,1750056670018,-1836.27,0.00016602,2]
[366087809,1750056670027,-2344.2,0.00016602,2]
[366087810,1750056670036,-4407.34,0.00016602,2]
[366087811,1750056670046,-490.0,0.00016602,2]
[366087812,1750056670056,-3683.39,0.00016602,2]
[366087813,1750056670066,-1965.4,0.00016602,2]
[366087814,1750056670076,-490.0,0.00016602,2]
[366087815,1750056670085,-151.0,0.00016602,2]
[366087816,1750056670095,-490.0,0.00016602,2]
[366087817,1750056670105,-151.0,0.00016602,2]
[366087818,1750056670115,-252.452504,0.00016602,2]
[366087819,1750056670125,-490.0,0.00016602,2]
[366087820,1750056670135,-490.0,0.00016602,2]
[366087821,1750056670145,-1221.23,0.00016602,2]
[366087822,1750056670161,-490.0,0.00016602,2]
[366087823,1750056670176,-490.0,0.00016602,2]
[366087824,1750056670187,-6953.33,0.00016602,2]
[366087825,1750056670197,-1194.58,0.00016602,2]
[366087826,1750056670207,-525.06,0.00016602,2]
[366087827,1750056670218,-811.21,0.00016602,2]
[366087828,1750056670227,-6791.57,0.00016602,2]
[366087829,1750056670239,-977.22,0.00016602,2]
[366087830,1750056670249,-490.0,0.00016602,2]
[366087831,1750056670259,-490.0,0.00016602,2]
[366087832,1750056670269,-674.86,0.00016602,2]
[366087833,1750056670279,-3191.58,0.00016602,2]
[366087834,1750056670289,-490.0,0.00016602,2]
[366087835,1750056670298,-490.0,0.00016602,2]
[366087836,1750056670308,-570.5,0.00016602,2]
[366087837,1750056670317,-1170.53,0.00016602,2]
[366087838,1750056670327,-794.54,0.00016602,2]
[366087839,1750056670336,-490.0,0.00016602,2]
[366087840,1750056670346,-1053.69,0.00016602,2]
[366087841,1750056670356,-490.0,0.00016602,2]
[366087842,1750056670366,-2678.86,0.00016602,2]
[366087843,1750056670376,-490.0,0.00016602,2]
[366087844,1750056670385,-1252.94,0.00016602,2]
[366087845,1750056670395,-490.0,0.00016602,2]
[366087846,1750056670549,-490.0,0.00016602,2]
[366087847,1750056670572,-276.69880954,0.00016602,2]
[366087848,1750056670583,-490.0,0.00016602,2]
[366087849,1750056670593,-1483.42,0.00016602,2]
[366087850,1750056670603,-1370.43,0.00016602,2]
[366087851,1750056670614,-490.0,0.00016602,2]
[366087852,1750056670624,-490.0,0.00016602,2]
[366087853,1750056670634,-2906.87,0.00016602,2]
[366087854,1750056670645,-3142.79,0.00016602,2]
[366087855,1750056670655,-770.95,0.00016602,2]
[366087856,1750056670666,-490.0,0.00016602,2]
[366087857,1750056670676,-490.0,0.00016602,2]
[366087858,1750056670685,-629.97,0.00016602,2]
[366087859,1750056670696,-8157.96,0.00016602,2]
[366087860,1750056670705,-490.0,0.00016602,2]
[366087861,1750056670715,-490.0,0.00016602,2]
[366087862,1750056670724,-490.0,0.00016602,2]
[366087863,1750056670733,-1405.96,0.00016602,2]
[366087864,1750056670742,-595.76,0.00016602,2]
[366087865,1750056670751,-2487.02,0.00016602,2]
[366087866,1750056670761,-151.0,0.00016602,2]
[366087867,1750056670770,-151.0,0.00016602,2]
[366087868,1750056670780,-1674.76,0.00016602,2]
[366087869,1750056670790,-777.06,0.00016602,2]
[366087870,1750056670800,-167.00185,0.00016602,2]
[366087871,1750056670810,-827.38,0.00016602,2]
[366087872,1750056670820,-553.58,0.00016602,2]
[366087873,1750056670829,-488.45936412,0.00016602,2]
[366087874,1750056670852,-490.0,0.00016602,2]
[366087875,1750056670865,-4453.36,0.00016602,2]
[366087876,1750056670876,-761.94,0.00016602,2]
[366087877,1750056670887,-4106.15,0.00016602,2]
[366087878,1750056670898,-808.43,0.00016602,2]
[366087879,1750056670908,-490.0,0.00016602,2]
[366087880,1750056670918,-151.0,0.00016602,2]
[366087881,1750056670929,-151.0,0.00016602,2]
[366087882,1750056670940,-151.0,0.00016602,2]
[366087883,1750056670950,-2235.97,0.00016602,2]
[366087884,1750056670960,-151.0,0.00016602,2]
[366087885,1750056670971,-1106.29,0.00016602,2]
[366087886,1750056670981,-151.0,0.00016602,2]
[366087887,1750056670992,-490.0,0.00016602,2]
[366087888,1750056671003,-903.02,0.00016602,2]
[366087889,1750056671014,-1194.49,0.00016602,2]
[366087890,1750056671024,-2163.08,0.00016602,2]
[366087891,1750056671035,-736.44,0.00016602,2]
[366087892,1750056671045,-490.0,0.00016602,2]
[366087893,1750056671056,-20066.12,0.00016602,2]
[366087894,1750056671067,-490.0,0.00016602,2]
[366087895,1750056671077,-3307.68,0.00016602,2]
[366087896,1750056671087,-1769.92,0.00016602,2]
[366087897,1750056671098,-897.01,0.00016602,2]
[366087898,1750056671109,-1384.52,0.00016602,2]
[366087899,1750056671119,-490.0,0.00016602,2]
[366087900,1750056671129,-498.43915613,0.00016602,2]
[366087901,1750056671140,-522.52,0.00016602,2]
[366087902,1750056671150,-19002.41,0.00016602,2]
[366087903,1750056671164,-8384.01,0.00016602,2]
[366087904,1750056671174,-517.12,0.00016602,2]
[366087905,1750056671184,-342.279241,0.00016602,2]
[366087906,1750056671195,-342.279241,0.00016602,2]
[366087907,1750056671205,-342.279241,0.00016602,2]
[366087908,1750056671215,-490.0,0.00016602,2]
[366087909,1750056671226,-342.279241,0.00016602,2]
[366087910,1750056671237,-1003.69,0.00016602,2]
[366087911,1750056671247,-469.88593366,0.00016602,2]
[366087912,1750056671257,-1218.32,0.00016602,2]
[366087913,1750056671267,-1274.71,0.00016602,2]
[366087914,1750056671285,-1343.03,0.00016602,2]
[366087915,1750056671297,-1991.23,0.00016602,2]
[366087916,1750056671308,-1354.35,0.00016602,2]
[366087917,1750056671320,-490.0,0.00016602,2]
[366087918,1750056671331,-948.06,0.00016602,2]
[366087919,1750056671342,-342.279241,0.00016602,2]
[366087920,1750056671353,-688.25,0.00016602,2]
[366087921,1750056671364,-342.279241,0.00016602,2]
[366087922,1750056671375,-342.279241,0.00016602,2]
[366087923,1750056671385,-342.279249,0.00016602,2]
[366087924,1750056671396,-490.0,0.00016602,2]
[366087925,1750056671407,-1019.52,0.00016602,2]
[366087926,1750056671418,-490.0,0.00016602,2]
[366087927,1750056671429,-890.49,0.00016602,2]
[366087928,1750056671439,-1006.92,0.00016602,2]
[366087929,1750056671450,-447.07137826,0.00016602,2]
[366087930,1750056671460,-490.0,0.00016602,2]
[366087931,1750056671471,-1190.37,0.00016602,2]
[366087932,1750056671482,-1777.4,0.00016602,2]
[366087933,1750056671492,-5798.77,0.00016602,2]
[366087934,1750056671503,-1399.85,0.00016602,2]
[366087935,1750056671514,-4034.03,0.00016602,2]
[366087936,1750056671524,-1277.78,0.00016602,2]
[366087937,1750056671535,-490.0,0.00016602,2]
[366087938,1750056671546,-490.0,0.00016602,2]
[366087939,1750056671556,-604.83,0.00016602,2]
[366087940,1750056671567,-492.06,0.00016602,2]
[366087941,1750056671578,-3763.29,0.00016602,2]
[366087942,1750056671589,-1760.73,0.00016602,2]
[366087943,1750056671600,-1229.85,0.00016602,2]
[366087944,1750056671611,-1902.84,0.00016602,2]
[366087945,1750056671622,-490.0,0.00016602,2]
[366087946,1750056671633,-1557.59,0.00016602,2]
[366087947,1750056671644,-490.0,0.00016602,2]
[366087948,1750056671655,-18090.43,0.00016602,2]
[366087949,1750056671666,-681.54,0.00016602,2]
[366087950,1750056671677,-1495.11,0.00016602,2]
[366087951,1750056671688,-522.48,0.00016602,2]
[366087952,1750056671699,-490.0,0.00016602,2]
[366087953,1750056671709,-1476.06,0.00016602,2]
[366087954,1750056671720,-151.0,0.00016602,2]
[366087955,1750056671730,-179.437248,0.00016605,2]
[366087956,1750056671741,-179.43725,0.00016605,2]
[366087957,1750056671751,-1131.569968,0.00016605,2]
[366087958,1750056671762,-1131.56997619,0.00016605,2]
[366087959,1750056671772,-151.0,0.00016605,2]
[366087960,1750056671783,-1344.018913,0.00016605,2]
[366087961,1750056671794,-473.216156,0.00016605,2]
[366087962,1750056671804,-1344.018922,0.00016605,2]
[366087963,1750056671815,-473.216161,0.00016605,2]
[366087964,1750056671826,-188.68906,0.00016605,2]
[366087965,1750056671836,-188.689052,0.00016605,2]
[366087966,1750056671846,-155.75274,0.00016605,2]
[366087967,1750056671856,-155.752737,0.00016605,2]
[366087968,1750056671867,-1482.932836,0.00016605,2]
[366087969,1750056671877,-1482.932839,0.00016605,2]
[366087970,1750056671888,-320.622226,0.00016605,2]
[366087971,1750056671899,-320.622233,0.00016605,2]
[366087972,1750056671910,-897.89746617,0.00016612,2]
[366087973,1750056671921,-1779.51495509,0.00016612,2]
[366087974,1750056671933,-151.0,0.00016616,2]
[366087975,1750056671943,-151.0,0.00016616,2]
[366087976,1750056671954,-151.0,0.00016616,2]
[366087977,1750056671965,-151.0,0.00016616,2]
[366087978,1750056671975,-291.565943,0.00016616,2]
[366087979,1750056671986,-151.0,0.00016616,2]
[366087980,1750056671996,-151.0,0.00016616,2]
[366087981,1750056672007,-151.0,0.00016616,2]
[366087982,1750056672018,-151.0,0.00016616,2]
[366087983,1750056672029,-3333.0,0.00016617,2]
[366087984,1750056672039,-946.0,0.00016617,2]
[366087985,1750056672049,-802.0,0.00016617,2]
[366087986,1750056672060,-637.0,0.00016617,2]
[366087987,1750056672070,-1160.0,0.00016617,2]
[366087988,1750056672082,-590.0,0.00016617,2]
[366087989,1750056672092,-1277.0,0.00016617,2]
[366087990,1750056672103,-558.0,0.00016617,2]
[366087991,1750056672114,-2003.0,0.00016617,2]
[366087992,1750056672125,-928.0,0.00016617,2]
[366087993,1750056672135,-1674.0,0.00016617,2]
[366087994,1750056672146,-4090.0,0.00016617,2]
[366087995,1750056672156,-203.665,0.00016617,2]
[366087996,1750056672171,-7112.0,0.00016617,2]
[366087997,1750056672182,-772.102,0.00016617,2]
[366087998,1750056672193,-151.0,0.00016617,2]
[366087999,1750056672203,-157.606675,0.00016617,2]
[366088000,1750056672213,-166.79452931,0.00016619,2]
[366088001,1750056672224,-897.89746617,0.00016667,2]
[366088002,1750056672235,-1779.51495509,0.00016667,2]
[366088003,1750056672246,-3982.02681534,0.00016667,2]
[366088004,1750056672256,-3290.94413456,0.00016667,2]
[366088005,1750056672266,-500.0,0.00016673,2]
[366088006,1750056672277,-521.93008047,0.00016673,2]
[366088007,1750056672287,-500.55203055,0.00016673,2]
[366088008,1750056672297,-500.0,0.00016673,2]
[366088009,1750056672307,-500.0,0.00016673,2]
[366088010,1750056672318,-500.0,0.00016673,2]
[366088011,1750056672328,-500.0,0.00016673,2]
[366088012,1750056672338,-500.0,0.00016673,2]
[366088013,1750056672348,-500.0,0.00016673,2]
[366088014,1750056672359,-500.0,0.00016673,2]
[366088015,1750056672369,-500.0,0.00016673,2]
[366088016,1750056672379,-500.0,0.00016673,2]
[366088017,1750056672390,-15005.7,0.000167,2]
[366088018,1750056672400,-150.53,0.000167,2]
[366088019,1750056672410,-151.0,0.000167,2]
[366088020,1750056672420,-523.38,0.000167,2]
[366088021,1750056672431,-803.32,0.000167,2]
[366088022,1750056672441,-1164.67,0.000167,2]
[366088023,1750056672451,-152.91,0.000167,2]
[366088024,1750056672461,-151.44,0.000167,2]
[366088025,1750056672470,-455.21597687,0.00016705,2]
[366088026,1750056672481,-187.07,0.00016712,2]
[366088027,1750056672491,-897.89746617,0.00016721,2]
[366088028,1750056672500,-1779.51495509,0.00016721,2]
[366088029,1750056672510,-151.0,0.00016728,2]
[366088030,1750056672520,-171.0,0.00016744,2]
[366088031,1750056672530,-500.0,0.00016749,2]
[366088032,1750056672540,-500.0,0.00016749,2]
[366088033,1750056672549,-176094.78095284,0.0001675,2]
[366088034,1750056672559,-233.297645,0.0001675,2]
[366088035,1750056672568,-233.297645,0.0001675,2]
[366088036,1750056672578,-151.0,0.0001675,2]
[366088037,1750056672588,-151.0,0.0001675,2]
[366088038,1750056672598,-151.0,0.0001675,2]
[366088039,1750056672608,-582.631974,0.0001675,2]
[366088040,1750056672617,-151.0,0.0001675,2]
[366088041,1750056672627,-151.0,0.0001675,2]
[366088042,1750056672637,-151.0,0.0001675,2]
[366088043,1750056672647,-151.0,0.0001675,2]
[366088044,1750056672656,-151.0,0.0001675,2]
[366088045,1750056672666,-152.766728,0.0001675,2]
[366088046,1750056672676,-152.766728,0.0001675,2]
[366088047,1750056672686,-151.0,0.0001675,2]
[366088048,1750056672695,-551.340562,0.0001675,2]
[366088049,1750056672705,-151.0,0.0001675,2]
[366088050,1750056672715,-551.340562,0.0001675,2]
[366088051,1750056672724,-276.410063,0.0001675,2]
[366088052,1750056672734,-276.410063,0.0001675,2]
[366088053,1750056672744,-243.415498,0.0001675,2]
[366088054,1750056672753,-243.415498,0.0001675,2]
[366088055,1750056672763,-151.0,0.0001675,2]
[366088056,1750056672773,-280.609822,0.0001675,2]
[366088057,1750056672783,-395.062481,0.0001675,2]
[366088058,1750056672792,-395.062481,0.0001675,2]
[366088059,1750056672802,-177.100647,0.0001675,2]
[366088060,1750056672812,-744.881814,0.0001675,2]
[366088061,1750056672823,-744.881814,0.0001675,2]
[366088062,1750056672833,-151.0,0.0001675,2]
[366088063,1750056673236,-204.277756,0.0001675,2]
[366088064,1750056673255,-151.0,0.0001675,2]
[366088065,1750056673265,-151.0,0.0001675,2]
[366088066,1750056673276,-819.488865,0.0001675,2]
[366088067,1750056673287,-151.0,0.0001675,2]
[366088068,1750056673296,-819.488865,0.0001675,2]
[366088069,1750056673306,-281.613636,0.0001675,2]
[366088070,1750056673316,-281.613626,0.0001675,2]
[366088071,1750056673326,-1143.899905,0.0001675,2]
[366088072,1750056673340,-200.0,0.00016766,2]
[366088073,1750056673349,-183.58112232,0.00016766,2]
[366088074,1750056673359,-500.0,0.00016766,2]
[366088075,1750056673370,-500.0,0.00016766,2]
[366088076,1750056673381,-500.0,0.00016766,2]
[366088077,1750056673391,-300.0,0.00016766,2]
[366088078,1750056673402,-200.0,0.00016767,2]
[366088079,1750056673412,-151.0,0.00016767,2]
[366088080,1750056673422,-233.297645,0.00016767,2]
[366088081,1750056673432,-233.297645,0.00016767,2]
[366088082,1750056673442,-233.297645,0.00016767,2]
[366088083,1750056673453,-233.297645,0.00016767,2]
[366088084,1750056673463,-151.0,0.00016767,2]
[366088085,1750056673474,-151.0,0.00016767,2]
[366088086,1750056673483,-246.324795,0.00016767,2]
[366088087,1750056673494,-151.0,0.00016767,2]
[366088088,1750056673505,-151.0,0.00016767,2]
[366088089,1750056673516,-151.0,0.00016767,2]
[366088090,1750056673528,-151.0,0.00016767,2]
[366088091,1750056673539,-151.0,0.00016767,2]
[366088092,1750056673548,-151.0,0.00016767,2]
[366088093,1750056673558,-177.840972,0.00016767,2]
[366088094,1750056673570,-151.0,0.00016767,2]
[366088095,1750056673580,-151.0,0.00016767,2]
[366088096,1750056673591,-582.631974,0.00016767,2]
[366088097,1750056673600,-151.0,0.00016767,2]
[366088098,1750056673610,-151.0,0.00016767,2]
[366088099,1750056673621,-490.0,0.00016767,2]
[366088100,1750056673631,-151.0,0.00016767,2]
[366088101,1750056673643,-151.0,0.00016767,2]
[366088102,1750056673652,-151.0,0.00016767,2]
[366088103,1750056673662,-151.0,0.00016767,2]
[366088104,1750056673672,-151.0,0.00016767,2]
[366088105,1750056673682,-491.36768013,0.00016767,2]
[366088106,1750056673691,-499.8895779,0.00016767,2]
[366088107,1750056673702,-490.0,0.00016767,2]
[366088108,1750056673712,-2763.713772,0.00016767,2]
[366088109,1750056673722,-152.766728,0.00016767,2]
[366088110,1750056673732,-152.766728,0.00016767,2]
[366088111,1750056673742,-152.766728,0.00016767,2]
[366088112,1750056673751,-152.766728,0.00016767,2]
[366088113,1750056673761,-152.766728,0.00016767,2]
[366088114,1750056673771,-151.0,0.00016767,2]
[366088115,1750056673781,-152.766728,0.00016767,2]
[366088116,1750056673791,-151.0,0.00016767,2]
[366088117,1750056673801,-152.766728,0.00016767,2]
[366088118,1750056673810,-152.766736,0.00016767,2]
[366088119,1750056673820,-151.0,0.00016767,2]
[366088120,1750056673830,-151.0,0.00016767,2]
[366088121,1750056673840,-551.340562,0.00016767,2]
[366088122,1750056673850,-3654.105009,0.00016767,2]
[366088123,1750056673860,-674.01,0.00016767,2]
[366088124,1750056673870,-151.751198,0.00016767,2]
[366088125,1750056673879,-551.340559,0.00016767,2]
[366088126,1750056673890,-490.0,0.00016767,2]
[366088127,1750056673900,-490.0,0.00016767,2]
[366088128,1750056673910,-527.2,0.00016767,2]
[366088129,1750056673921,-515.38,0.00016767,2]
[366088130,1750056673931,-276.410063,0.00016767,2]
[366088131,1750056673941,-276.410063,0.00016767,2]
[366088132,1750056673951,-276.410063,0.00016767,2]
[366088133,1750056673961,-204.67899844,0.00016767,2]
[366088134,1750056673970,-276.410063,0.00016767,2]
[366088135,1750056673980,-669.75,0.00016767,2]
[366088136,1750056673991,-276.410063,0.00016767,2]
[366088137,1750056674003,-276.410063,0.00016767,2]
[366088138,1750056674014,-276.410063,0.00016767,2]
[366088139,1750056674024,-276.410067,0.00016767,2]
[366088140,1750056674035,-490.0,0.00016767,2]
[366088141,1750056674046,-243.415498,0.00016767,2]
[366088142,1750056674056,-243.415498,0.00016767,2]
[366088143,1750056674066,-243.415498,0.00016767,2]
[366088144,1750056674076,-243.415498,0.00016767,2]
[366088145,1750056674086,-596.82,0.00016767,2]
[366088146,1750056674096,-243.415498,0.00016767,2]
[366088147,1750056674106,-866.5,0.00016767,2]
[366088148,1750056674116,-243.415498,0.00016767,2]
[366088149,1750056674126,-243.415498,0.00016767,2]
[366088150,1750056674136,-151.0,0.00016767,2]
[366088151,1750056674147,-243.415498,0.00016767,2]
[366088152,1750056674160,-265.42624,0.00016767,2]
[366088153,1750056674171,-490.0,0.00016767,2]
[366088154,1750056674182,-490.0,0.00016767,2]
[366088155,1750056674192,-698.19,0.00016767,2]
[366088156,1750056674202,-490.0,0.00016767,2]
[366088157,1750056674214,-771.42,0.00016767,2]
[366088158,1750056674224,-490.0,0.00016767,2]
[366088159,1750056674235,-521.0,0.00016767,2]
[366088160,1750056674245,-395.062481,0.00016767,2]
[366088161,1750056674254,-395.062481,0.00016767,2]
[366088162,1750056674264,-395.062481,0.00016767,2]
[366088163,1750056674274,-490.0,0.00016767,2]
[366088164,1750056674284,-395.062481,0.00016767,2]
[366088165,1750056674294,-395.062481,0.00016767,2]
[366088166,1750056674304,-645.79,0.00016767,2]
[366088167,1750056674313,-395.062481,0.00016767,2]
[366088168,1750056674325,-502.93,0.00016767,2]
[366088169,1750056674335,-395.062481,0.00016767,2]
[366088170,1750056674345,-395.062475,0.00016767,2]
[366088171,1750056674355,-490.0,0.00016767,2]
[366088172,1750056674365,-503.2,0.00016767,2]
[366088173,1750056674375,-386.06768237,0.00016767,2]
[366088174,1750056674385,-513.06,0.00016767,2]
[366088175,1750056674394,-744.881814,0.00016767,2]
[366088176,1750056674404,-744.881812,0.00016767,2]
[366088177,1750056674415,-490.0,0.00016767,2]
[366088178,1750056674425,-552.44,0.00016767,2]
[366088179,1750056674435,-490.0,0.00016767,2]
[366088180,1750056674446,-490.0,0.00016767,2]
[366088181,1750056674456,-490.0,0.00016767,2]
[366088182,1750056674465,-151.0,0.00016767,2]
[366088183,1750056674475,-490.0,0.00016767,2]
[366088184,1750056674484,-490.0,0.00016767,2]
[366088185,1750056674494,-490.0,0.00016767,2]
[366088186,1750056674504,-490.0,0.00016767,2]
[366088187,1750056674514,-490.0,0.00016767,2]
[366088188,1750056674524,-490.0,0.00016767,2]
[366088189,1750056674534,-819.488865,0.00016767,2]
[366088190,1750056674543,-819.488865,0.00016767,2]
[366088191,1750056674553,-819.488865,0.00016767,2]
[366088192,1750056674563,-819.488865,0.00016767,2]
[366088193,1750056674574,-537.29,0.00016767,2]
[366088194,1750056674584,-819.488865,0.00016767,2]
[366088195,1750056674594,-819.488865,0.00016767,2]
[366088196,1750056674603,-819.488865,0.00016767,2]
[366088197,1750056674613,-819.488868,0.00016767,2]
[366088198,1750056674623,-490.0,0.00016767,2]
[366088199,1750056674633,-563.34,0.00016767,2]
[366088200,1750056674642,-490.0,0.00016767,2]
[366088201,1750056674653,-490.0,0.00016767,2]
[366088202,1750056674663,-490.0,0.00016767,2]
[366088203,1750056674673,-490.0,0.00016767,2]
[366088204,1750056674683,-497.21,0.00016767,2]
[366088205,1750056674693,-680.28,0.00016767,2]
[366088206,1750056674704,-490.0,0.00016767,2]
[366088207,1750056674714,-490.0,0.00016767,2]
[366088208,1750056674724,-490.0,0.00016767,2]
[366088209,1750056674734,-490.0,0.00016767,2]
[366088210,1750056674745,-490.0,0.00016767,2]
[366088211,1750056674755,-490.0,0.00016767,2]
[366088212,1750056674766,-490.0,0.00016767,2]
[366088213,1750056674776,-597.22,0.00016767,2]
[366088214,1750056674786,-490.0,0.00016767,2]
[366088215,1750056674796,-1154.69,0.00016767,2]
[366088216,1750056674809,-490.0,0.00016767,2]
[366088217,1750056674820,-490.0,0.00016767,2]
[366088218,1750056674830,-548.63,0.00016767,2]
[366088219,1750056674841,-490.0,0.00016767,2]
[366088220,1750056674852,-341.66364328,0.00016767,2]
[366088221,1750056674862,-490.0,0.00016767,2]
[366088222,1750056674873,-490.0,0.00016767,2]
[366088223,1750056674883,-490.0,0.00016767,2]
[366088224,1750056674893,-490.0,0.00016767,2]
[366088225,1750056674903,-525.41,0.00016767,2]
[366088226,1750056674914,-490.0,0.00016767,2]
[366088227,1750056674923,-490.0,0.00016767,2]
[366088228,1750056674934,-497.84,0.00016767,2]
[366088229,1750056674944,-1443.69,0.00016767,2]
[366088230,1750056674954,-501.88,0.00016767,2]
[366088231,1750056674966,-490.0,0.00016767,2]
[366088232,1750056674976,-776.52,0.00016767,2]